bitfinex/quotes_BTCUSD_20250308
["timestamp","ask_amount","ask_price","bid_price","bid_amount"]
[1741428419005,0.01816697,86350.0,86349.0,0.0941396]
[1741428419430,0.01816697,86350.0,86349.0,0.3839376]
[1741428419847,0.01816697,86350.0,86349.0,0.39847845]
[1741428421482,0.01816697,86350.0,86349.0,0.38447845]
[1741428421904,0.01816697,86350.0,86349.0,0.39147845]
[1741428423814,0.01816697,86350.0,86349.0,0.39847845]
[1741428430006,0.01816697,86350.0,86349.0,0.15528045]
[1741428430209,0.26136197,86350.0,86349.0,0.0143396]
[1741428430445,0.26136197,86350.0,86349.0,0.1242996]
[1741428430652,0.243195,86350.0,86349.0,0.0143396]
[1741428433185,0.26136184,86350.0,86349.0,0.0143396]
[1741428434775,0.243195,86350.0,86349.0,0.0143396]
[1741428436449,0.618795,86350.0,86349.0,0.0143396]
[1741428436652,0.543235,86336.0,86335.0,0.0003396]
[1741428436909,0.618835,86336.0,86335.0,0.0003396]
[1741428437050,0.618835,86336.0,86307.0,0.0788]
[1741428437051,0.011586,86305.0,86304.0,0.0003398]
[1741428437269,0.243322,86305.0,86304.0,0.0003398]
[1741428437677,0.26149762,86305.0,86304.0,0.0003398]
[1741428438551,0.58528463,86305.0,86304.0,0.0003398]
[1741428438764,0.58528463,86305.0,86304.0,8e-07]
[1741428439595,0.58628463,86305.0,86304.0,0.0070008]
[1741428439793,0.58728463,86305.0,86304.0,0.0140008]
[1741428440608,0.58628463,86305.0,86304.0,0.0070008]
[1741428441020,0.58728463,86305.0,86304.0,0.0140008]
[1741428441437,0.35554863,86305.0,86304.0,0.0140008]
[1741428441714,0.34396263,86305.0,86304.0,0.0140008]
[1741428441924,0.35554863,86305.0,86304.0,0.0140008]
[1741428442940,0.002,86305.0,86304.0,0.0140008]
[1741428443219,0.002,86305.0,86304.0,0.0255868]
[1741428443425,0.001,86305.0,86304.0,0.0070008]
[1741428443659,0.012586,86305.0,86304.0,0.0070008]
[1741428443850,0.011586,86305.0,86304.0,8e-07]
[1741428444377,0.011586,86308.0,86304.0,8e-07]
[1741428444584,0.02280159,86308.0,86304.0,8e-07]
[1741428444790,0.011585,86317.0,86307.0,0.243315]
[1741428445002,0.011585,86317.0,86309.0,0.011586]
[1741428445180,0.00011626,86316.0,86315.0,0.243292]
[1741428445739,0.00011626,86316.0,86309.0,0.32411]
[1741428445963,0.011585,86315.0,86309.0,0.092386]
[1741428446565,0.011585,86315.0,86309.0,0.32411]
[1741428446965,0.011585,86315.0,86309.0,0.0808]
[1741428447185,0.243303,86312.0,86309.0,0.0808]
[1741428447615,0.011585,86312.0,86309.0,0.0808]
[1741428448618,0.011585,86312.0,86309.0,0.0811398]
[1741428448815,0.011586,86310.0,86309.0,0.0003398]
[1741428450430,0.243303,86312.0,86309.0,0.0003398]
[1741428450640,0.011585,86312.0,86309.0,0.0003398]
[1741428451047,0.243303,86312.0,86309.0,0.0003398]
[1741428451619,0.011586,86311.0,86309.0,0.0003398]
[1741428452466,0.243308,86310.0,86309.0,0.0003398]
[1741428454539,0.011586,86304.0,86303.0,0.09212625]
[1741428455428,0.011586,86304.0,86296.0,0.0003396]
[1741428455429,0.011587,86301.0,86296.0,0.0003396]
[1741428455629,0.011587,86300.0,86298.0,0.10996]
[1741428456556,0.231713,86314.0,86302.0,0.011587]
[1741428456557,0.231727,86309.0,86302.0,0.011587]
[1741428456785,0.011587,86301.0,86298.0,0.10996]
[1741428456994,0.011587,86301.0,86296.0,0.0003396]
[1741428456995,0.011587,86300.0,86296.0,0.01488045]
[1741428457194,0.011587,86300.0,86299.0,0.1103396]
[1741428457822,0.011587,86300.0,86299.0,0.0003396]
[1741428460750,0.02976278,86300.0,86299.0,0.0003396]
[1741428484843,0.011587,86300.0,86299.0,0.0003396]
[1741428485244,0.02976424,86300.0,86299.0,0.0003396]
[1741428485458,0.011587,86300.0,86299.0,0.0003396]
[1741428486808,0.011587,86300.0,86299.0,0.0455396]
[1741428488570,0.0297637,86300.0,86299.0,0.0455396]
[1741428494388,0.0297637,86300.0,86299.0,0.0003396]
[1741428494997,0.06533134,86300.0,86299.0,0.0003396]
[1741428495360,0.04715464,86300.0,86299.0,0.0003396]
[1741428495557,0.27890364,86300.0,86299.0,0.0777396]
[1741428498059,0.29708017,86300.0,86299.0,0.0777396]
[1741428498279,0.29708017,86300.0,86299.0,0.0003396]
[1741428502451,0.29708017,86300.0,86299.0,0.0488396]
[1741428505748,0.26151253,86300.0,86299.0,0.0488396]
[1741428505949,0.29708278,86300.0,86299.0,0.0488396]
[1741428508096,0.26151253,86300.0,86299.0,0.0488396]
[1741428508809,0.29707746,86300.0,86299.0,0.0488396]
[1741428519758,0.29707746,86300.0,86299.0,0.0003396]
[1741428523174,0.27890093,86300.0,86299.0,0.0003396]
[1741428526161,0.29707812,86300.0,86299.0,0.0003396]
[1741428533590,0.09672541,86300.0,86299.0,0.0003396]
[1741428534023,0.10831241,86300.0,86299.0,0.0003396]
[1741428535874,0.243342,86298.0,86297.0,0.1102624]
[1741428537299,0.00017,86303.0,86298.0,0.011587]
[1741428537538,0.011757,86303.0,86297.0,0.1102624]
[1741428537772,0.011587,86301.0,86297.0,0.1102624]
[1741428538022,0.00017,86303.0,86298.0,0.011587]
[1741428538263,0.00017,86303.0,86302.0,0.34117185]
[1741428538963,0.00017,86303.0,86302.0,0.38987185]
[1741428540037,0.01834427,86303.0,86302.0,0.38987185]
[1741428540472,0.12188295,86303.0,86302.0,0.38987185]
[1741428540689,0.12188295,86303.0,86302.0,0.69453984]
[1741428541126,0.07188295,86303.0,86302.0,0.69453984]
[1741428541359,0.09005635,86303.0,86302.0,0.69453984]
[1741428541787,0.09022635,86303.0,86302.0,0.69453984]
[1741428542817,0.09022635,86303.0,86302.0,0.99453984]
[1741428543023,0.00904918,86303.0,86302.0,0.99453984]
[1741428543263,0.00011626,86316.0,86311.0,0.68354685]
[1741428543480,0.00011626,86316.0,86311.0,0.79350685]
[1741428545582,0.00011626,86316.0,86311.0,1.09817484]
[1741428554614,0.00011626,86316.0,86311.0,1.12317484]
[1741428554833,0.011579,86356.0,86311.0,1.12317484]
[1741428554834,0.00495,86357.0,86349.0,0.01158]
[1741428555063,0.00055737,86350.0,86349.0,0.13719882]
[1741428555231,0.00055737,86350.0,86349.0,0.12561882]
[1741428555616,0.00055737,86350.0,86349.0,0.12446085]
[1741428556249,0.00055737,86350.0,86349.0,0.13604085]
[1741428556452,0.00055737,86350.0,86349.0,0.13719882]
[1741428557270,0.00055737,86350.0,86349.0,0.13604085]
[1741428557496,0.00055737,86350.0,86349.0,0.44070884]
[1741428557939,0.01872267,86350.0,86349.0,0.44070884]
[1741428558518,0.01872267,86350.0,86349.0,0.51800884]
[1741428559319,0.01872267,86350.0,86349.0,0.50642884]
[1741428559724,0.01872267,86350.0,86349.0,0.42912884]
[1741428559933,0.03030267,86350.0,86349.0,0.30466799]
[1741428560136,0.231582,86363.0,86349.0,0.42612799]
[1741428560361,0.011579,86363.0,86356.0,0.011579]
[1741428560583,0.011579,86361.0,86356.0,0.011579]
[1741428561501,0.011579,86361.0,86353.0,0.01454085]
[1741428561700,0.011579,86359.0,86353.0,0.01454085]
[1741428561831,0.011579,86359.0,86353.0,0.02612085]
[1741428562034,0.011579,86359.0,86352.0,0.231608]
[1741428562035,0.011579,86356.0,86352.0,0.01454085]
[1741428562235,0.01158,86353.0,86352.0,0.01454085]
[1741428562415,0.01158,86353.0,86352.0,0.12442085]
[1741428563050,0.02974536,86353.0,86352.0,0.12442085]
[1741428563616,0.01816536,86353.0,86352.0,0.12442085]
[1741428563974,0.01158,86354.0,86352.0,0.12442085]
[1741428564181,0.01158,86353.0,86352.0,0.12442085]
[1741428564400,0.01158,86354.0,86352.0,0.12442085]
[1741428564582,0.01158,86355.0,86352.0,0.12442085]
[1741428564784,0.243184,86355.0,86352.0,0.12442085]
[1741428564990,0.01158,86353.0,86352.0,0.12442085]
[1741428566567,0.01158,86353.0,86343.0,0.088881]
[1741428566568,0.231634,86344.0,86333.0,0.0763]
[1741428566783,0.243212,86344.0,86343.0,0.10988]
[1741428566998,0.243212,86344.0,86331.0,0.30466799]
[1741428566999,0.243227,86339.0,86337.0,0.01454085]
[1741428567217,0.243227,86339.0,86338.0,0.12442085]
[1741428567418,0.011582,86339.0,86338.0,0.12442085]
[1741428568332,0.2613942,86339.0,86338.0,0.12442085]
[1741428568542,0.011582,86337.0,86331.0,0.30466799]
[1741428568728,0.0297492,86339.0,86336.0,0.2586]
[1741428568876,0.0297492,86339.0,86336.0,0.10988]
[1741428569098,0.011582,86338.0,86336.0,0.10988]
[1741428569728,0.011582,86337.0,86336.0,0.10988]
[1741428570316,0.2498122,86339.0,86336.0,0.10988]
[1741428570505,0.0181672,86339.0,86336.0,0.10988]
[1741428570856,0.0181672,86339.0,86338.0,0.011582]
[1741428571306,0.0181672,86339.0,86338.0,0.25776985]
[1741428573712,0.0181672,86339.0,86338.0,0.36764985]
[1741428580083,0.0181672,86339.0,86338.0,0.36798945]
[1741428580322,0.0181672,86339.0,86338.0,0.36837692]
[1741428607974,0.243207,86346.0,86339.0,0.25776485]
[1741428608208,0.011581,86345.0,86340.0,0.011582]
[1741428608432,0.011581,86347.0,86341.0,0.231639]
[1741428608647,0.011581,86347.0,86343.0,0.231633]
[1741428608860,0.011581,86346.0,86341.0,0.231639]
[1741428609714,0.32982205,86349.0,86343.0,0.011581]
[1741428610155,0.32982205,86349.0,86342.0,0.011581]
[1741428610156,0.08662405,86347.0,86342.0,0.011581]
[1741428610789,0.09820505,86347.0,86340.0,0.011582]
[1741428610973,0.09820505,86347.0,86340.0,0.243223]
[1741428612445,0.243209,86346.0,86339.0,0.02612285]
[1741428612649,0.011581,86346.0,86340.0,0.231642]
[1741428612937,0.011581,86346.0,86340.0,0.243224]
[1741428613564,0.243207,86346.0,86340.0,0.243224]
[1741428614535,0.011581,86346.0,86340.0,0.243224]
[1741428614773,0.011581,86346.0,86345.0,0.02313713]
[1741428615013,0.31824805,86347.0,86345.0,0.02313713]
[1741428615249,0.08662405,86347.0,86345.0,0.02313713]
[1741428615691,0.09820505,86347.0,86341.0,0.011581]
[1741428616833,0.08662405,86347.0,86343.0,0.011581]
[1741428617621,0.09820505,86347.0,86342.0,0.231636]
[1741428617956,0.011581,86346.0,86342.0,0.231636]
[1741428618183,0.011581,86346.0,86341.0,0.011581]
[1741428618440,0.011581,86346.0,86340.0,0.243223]
[1741428619142,0.26136859,86348.0,86340.0,0.243223]
[1741428619143,0.26136859,86348.0,86343.0,0.011581]
[1741428619361,0.26136859,86348.0,86341.0,0.231639]
[1741428619825,0.26136859,86348.0,86341.0,0.24322]
[1741428620055,0.011581,86347.0,86341.0,0.24322]
[1741428621302,0.011581,86347.0,86341.0,0.011581]
[1741428621487,0.011581,86345.0,86340.0,0.243223]
[1741428621890,0.011581,86345.0,86340.0,0.011582]
[1741428622128,0.243212,86344.0,86339.0,0.02612285]
[1741428622340,0.011581,86344.0,86339.0,0.02612285]
[1741428623402,0.011581,86344.0,86338.0,0.23237407]
[1741428623403,0.231645,86339.0,86338.0,0.00072707]
[1741428623582,0.27886553,86339.0,86338.0,0.00072707]
[1741428623788,0.04722053,86339.0,86338.0,0.00072707]
[1741428623989,0.04722053,86339.0,86338.0,0.01230907]
[1741428623990,0.03563853,86339.0,86338.0,0.01230907]
[1741428624186,0.011581,86346.0,86341.0,0.243219]
[1741428624394,0.03563498,86345.0,86344.0,0.011581]
[1741428624592,0.03563498,86349.0,86345.0,0.231628]
[1741428624819,0.03563415,86348.0,86345.0,0.243209]
[1741428625020,0.03563415,86347.0,86343.0,0.243214]
[1741428625222,0.03563415,86346.0,86340.0,0.243224]
[1741428625522,0.243219,86342.0,86339.0,0.10988]
[1741428625725,0.243224,86340.0,86339.0,0.10988]
[1741428625928,0.011582,86340.0,86339.0,0.10988]
[1741428626388,0.243224,86340.0,86339.0,0.10988]
[1741428626503,0.26139163,86340.0,86339.0,0.10988]
[1741428626912,0.29701728,86340.0,86339.0,0.10988]
[1741428627995,0.08893202,86340.0,86330.0,0.10988]
[1741428628907,0.011582,86339.0,86330.0,0.10988]
[1741428629946,0.011582,86339.0,86329.0,0.10988]
[1741428630385,0.011582,86339.0,86326.0,0.25856]
[1741428631639,0.011582,86339.0,86326.0,0.14868]
[1741428631640,0.089382,86339.0,86326.0,0.14868]
[1741428632084,0.089382,86339.0,86316.0,0.01454085]
[1741428632233,0.089382,86339.0,86323.0,0.10988]
[1741428632791,0.089382,86339.0,86316.0,0.01454085]
[1741428632997,0.47046678,86339.0,86320.0,0.10988]
[1741428633227,0.434882,86339.0,86320.0,0.10988]
[1741428633483,0.47045227,86339.0,86312.0,0.0003398]
[1741428633705,0.47045227,86339.0,86319.0,0.10988]
[1741428633706,0.87045227,86339.0,86319.0,0.10988]
[1741428633917,0.24328,86320.0,86319.0,0.10988]
[1741428634100,0.243299,86313.0,86312.0,0.0003398]
[1741428634992,0.26695694,86313.0,86312.0,0.0003398]
[1741428636934,0.28512982,86313.0,86312.0,0.0003398]
[1741428639574,0.04183082,86313.0,86312.0,0.0003398]
[1741428640442,0.05341582,86313.0,86312.0,0.0003398]
[1741428641726,0.04183082,86313.0,86312.0,0.0003398]
[1741428643186,0.05341582,86313.0,86312.0,0.0003398]
[1741428649016,0.28512982,86313.0,86312.0,0.0003398]
[1741428649419,0.05341582,86313.0,86312.0,0.0003398]
[1741428652331,0.06519742,86315.0,86312.0,0.0003398]
[1741428652548,0.011585,86316.0,86312.0,0.0003398]
[1741428652720,0.01817257,86313.0,86312.0,0.0003398]
[1741428652923,0.011585,86314.0,86312.0,0.0003398]
[1741428653131,0.011585,86313.0,86312.0,0.0003398]
[1741428654046,0.03503664,86313.0,86312.0,0.0003398]
[1741428654246,0.011585,86313.0,86312.0,0.0003398]
[1741428655490,0.03530433,86313.0,86312.0,0.0003398]
[1741428656121,0.05347702,86313.0,86312.0,0.0003398]
[1741428659843,0.04189202,86313.0,86312.0,0.0003398]
[1741428660052,0.05347702,86313.0,86312.0,0.0003398]
[1741428660229,0.04189202,86313.0,86312.0,0.0003398]
[1741428660430,0.05347702,86313.0,86312.0,0.0003398]
[1741428661591,0.04189202,86313.0,86312.0,0.0003398]
[1741428661862,0.05347702,86313.0,86312.0,0.0003398]
[1741428664252,0.04189202,86313.0,86312.0,0.0003398]
[1741428664677,0.05347702,86313.0,86312.0,0.0003398]
[1741428667673,0.04189202,86313.0,86312.0,0.0003398]
[1741428667910,0.05347702,86313.0,86312.0,0.0003398]
[1741428668853,0.04189202,86313.0,86312.0,0.0003398]
[1741428669819,0.01817269,86313.0,86312.0,0.3224418]
[1741428670012,0.01817269,86313.0,86312.0,0.38598265]
[1741428670444,0.0001699,86315.0,86314.0,0.25783785]
[1741428670645,0.0001699,86315.0,86314.0,0.33663785]
[1741428672990,0.01834095,86315.0,86314.0,0.33663785]
[1741428673194,0.01834095,86315.0,86314.0,0.38323785]
[1741428673403,0.0001699,86315.0,86314.0,0.38369898]
[1741428674977,0.0001699,86315.0,86314.0,0.49357898]
[1741428675351,0.0001699,86315.0,86314.0,0.49311785]
[1741428676100,0.01834051,86315.0,86314.0,0.49311785]
[1741428677763,0.01834051,86315.0,86314.0,0.49357898]
[1741428680382,0.01834051,86315.0,86314.0,0.52401626]
[1741428681775,0.01834051,86315.0,86314.0,0.49357898]
[1741428682585,0.01834051,86315.0,86314.0,0.81527898]
[1741428682899,0.01834051,86315.0,86314.0,0.81481785]
[1741428683519,0.01834051,86315.0,86314.0,0.84529985]
[1741428684547,0.01834051,86315.0,86314.0,0.84576098]
[1741428684703,0.01834051,86315.0,86314.0,0.81527898]
[1741428684902,0.01834051,86315.0,86314.0,0.83905567]
[1741428685355,0.01834051,86315.0,86314.0,0.83859454]
[1741428687997,0.01834051,86315.0,86314.0,0.81477785]
[1741428688822,0.01834051,86315.0,86314.0,0.800237]
[1741428689023,0.01834051,86315.0,86314.0,0.81477785]
[1741428689224,0.01834051,86315.0,86314.0,0.81511765]
[1741428690413,0.01834051,86315.0,86314.0,0.68971765]
[1741428690644,0.0001699,86315.0,86314.0,0.68971765]
[1741428692131,0.0001699,86315.0,86314.0,0.45800565]
[1741428694515,0.0001699,86315.0,86314.0,0.13630565]
[1741428694759,0.0001699,86315.0,86314.0,0.13746407]
[1741428695327,0.0001699,86315.0,86314.0,0.13630565]
[1741428696121,0.0001699,86315.0,86314.0,0.12472065]
[1741428696316,0.0001699,86315.0,86314.0,0.01488065]
[1741428696546,0.0001699,86315.0,86314.0,0.12472065]
[1741428696768,0.0117549,86315.0,86314.0,0.0003398]
[1741428696974,0.0117549,86315.0,86314.0,0.1101798]
[1741428699422,0.0117549,86315.0,86314.0,0.0003398]
[1741428709778,0.20728246,86318.0,86314.0,0.0003398]
[1741428709990,0.231707,86316.0,86314.0,0.0003398]
[1741428710945,0.011585,86315.0,86314.0,0.0003398]
[1741428712086,0.0117549,86315.0,86314.0,0.0003398]
[1741428718197,0.2434639,86315.0,86314.0,0.0003398]
[1741428720453,0.0305772,86315.0,86314.0,0.0003398]
[1741428720645,0.231709,86315.0,86314.0,0.0003398]
[1741428721026,0.243294,86315.0,86314.0,0.0003398]
[1741428736331,0.20096329,86317.0,86314.0,0.0003398]
[1741428737084,0.011585,86315.0,86314.0,0.0003398]
[1741428737293,0.243294,86315.0,86314.0,0.0003398]
[1741428741906,0.011585,86315.0,86314.0,0.0003398]
[1741428742644,0.243294,86315.0,86314.0,0.0003398]
[1741428746417,0.27890847,86315.0,86314.0,0.0003398]
[1741428755451,0.04719947,86315.0,86314.0,0.0003398]
[1741428759302,0.17329947,86315.0,86314.0,0.0003398]
[1741428759505,0.47329947,86315.0,86314.0,0.0003398]
[1741428763035,0.011585,86313.0,86312.0,0.0003398]
[1741428763242,0.04719947,86313.0,86312.0,0.0003398]
[1741428764270,0.45703947,86313.0,86312.0,0.0003398]
[1741428773275,0.45703947,86313.0,86302.0,0.00034]
[1741428773276,0.543328,86303.0,86302.0,0.00034]
[1741428773474,0.65464247,86303.0,86302.0,0.00034]
[1741428773683,0.76448247,86303.0,86302.0,0.00034]
[1741428776183,0.543336,86300.0,86296.0,0.0003396]
[1741428776371,1.69220547,86300.0,86296.0,0.0003396]
[1741428776617,1.77670247,86300.0,86296.0,0.0003396]
[1741428779094,0.543344,86297.0,86296.0,0.0003396]
[1741428779270,0.60395847,86297.0,86296.0,0.0003396]
[1741428779518,1.37920247,86297.0,86296.0,0.0003396]
[1741428779747,1.26464947,86297.0,86296.0,0.0003396]
[1741428779955,1.21407047,86297.0,86296.0,0.0003396]
[1741428780594,1.51061847,86297.0,86296.0,0.0003396]
[1741428781099,0.743356,86293.0,86292.0,0.0003396]
[1741428781305,0.543378,86285.0,86284.0,0.0003796]
[1741428781684,0.311589,86285.0,86284.0,0.0003796]
[1741428786686,0.311589,86285.0,86284.0,0.0004196]
[1741428788727,0.639889,86285.0,86284.0,0.0004196]
[1741428788944,0.01159,86276.0,86275.0,0.01]
[1741428789492,0.01159,86276.0,86275.0,0.00675874]
[1741428789896,0.40984,86278.0,86275.0,0.00675874]
[1741428790552,0.3,86276.0,86275.0,0.00675874]
[1741428792438,0.6283,86276.0,86275.0,0.00675874]
[1741428793534,0.6283,86276.0,86275.0,0.006875]
[1741428797088,0.6283,86276.0,86275.0,0.0072148]
[1741428799873,0.6283,86276.0,86275.0,0.0072548]
[1741428801349,0.66380173,86276.0,86275.0,0.0072548]
[1741428801527,0.8283,86276.0,86275.0,0.0072548]
[1741428801735,1.24081012,86276.0,86275.0,0.0072548]
[1741428802284,0.3,86272.0,86269.0,0.005]
[1741428802799,0.03550956,86271.0,86269.0,0.005]
[1741428803888,0.3,86265.0,86262.0,0.0003392]
[1741428804159,0.3,86263.0,86262.0,0.0003392]
[1741428804324,0.33550956,86263.0,86262.0,0.0003392]
[1741428804496,0.79508436,86263.0,86262.0,0.0003392]
[1741428804910,0.49508436,86263.0,86262.0,0.0003392]
[1741428805111,0.05846336,86263.0,86262.0,0.0003392]
[1741428805283,0.16616336,86263.0,86262.0,0.0003392]
[1741428805490,0.05846336,86263.0,86262.0,0.0003392]
[1741428806616,0.08156839,86263.0,86262.0,0.0003392]
[1741428809414,0.08156839,86263.0,86252.0,0.0003396]
[1741428809415,0.31438568,86262.0,86252.0,0.0003396]
[1741428809543,1.175444,86261.0,86252.0,0.0003396]
[1741428809750,0.03550956,86260.0,86252.0,0.0003396]
[1741428813941,0.15054506,86261.0,86252.0,0.0003396]
[1741428814409,0.03552533,86260.0,86252.0,0.0003396]
[1741428814577,0.15054506,86261.0,86252.0,0.0003396]
[1741428815532,0.713852,86260.0,86252.0,0.0003396]
[1741428815737,0.629358,86259.0,86252.0,0.0003396]
[1741428816000,0.629358,86260.0,86252.0,0.0003396]
[1741428816246,0.629368,86260.0,86252.0,0.0003396]
[1741428817812,0.629368,86260.0,86252.0,0.0003796]
[1741428818685,0.618602,86260.0,86252.0,0.0003796]
[1741428819051,0.10318701,86259.0,86252.0,0.0003796]
[1741428819325,0.683502,86258.0,86252.0,0.0003796]
[1741428822873,0.10318701,86259.0,86252.0,0.0003796]
[1741428823049,0.10318701,86257.0,86252.0,0.0003796]
[1741428823256,1.337086,86256.0,86252.0,0.0003796]
[1741428823932,0.03523185,86255.0,86252.0,0.0003796]
[1741428824164,0.10988,86254.0,86252.0,0.0003796]
[1741428824377,1.29227285,86253.0,86252.0,0.0003796]
[1741428824802,1.21688385,86253.0,86252.0,0.0003796]
[1741428825538,0.011594,86249.0,86235.0,0.1229]
[1741428825751,0.15719284,86245.0,86235.0,0.1229]
[1741428825978,0.03523185,86244.0,86235.0,0.1229]
[1741428826274,0.03523185,86248.0,86235.0,0.1229]
[1741428826431,0.03523185,86247.0,86235.0,0.1229]
[1741428826644,0.03523185,86246.0,86235.0,0.1229]
[1741428826912,0.3,86244.0,86235.0,0.12301631]
[1741428827138,0.03523185,86243.0,86235.0,0.12301631]
[1741428828070,0.03523185,86243.0,86235.0,0.00011631]
[1741428828253,0.3,86239.0,86235.0,0.00011631]
[1741428829853,0.2229784,86242.0,86235.0,0.00011631]
[1741428830776,0.103274,86239.0,86235.0,0.00011631]
[1741428834472,0.2229784,86242.0,86235.0,0.00011631]
[1741428835716,0.3283,86243.0,86235.0,0.00011631]
[1741428835925,0.3283,86243.0,86236.0,0.1222]
[1741428839870,0.03529487,86242.0,86236.0,0.1222]
[1741428840279,0.03529487,86243.0,86236.0,0.1222]
[1741428840403,0.03529487,86241.0,86236.0,0.1222]
[1741428840611,0.03529487,86240.0,86236.0,0.1222]
[1741428840797,0.03529487,86243.0,86236.0,0.1222]
[1741428841000,0.03529487,86242.0,86236.0,0.1222]
[1741428841227,0.03529487,86243.0,86236.0,0.1222]
[1741428841418,0.03529487,86242.0,86236.0,0.1222]
[1741428841636,0.03529487,86243.0,86236.0,0.1222]
[1741428841848,0.03529487,86242.0,86236.0,0.1222]
[1741428842044,0.03529487,86243.0,86236.0,0.1222]
[1741428842248,0.03529487,86242.0,86236.0,0.1222]
[1741428842608,0.03529487,86243.0,86236.0,0.1222]
[1741428842830,0.03529487,86242.0,86236.0,0.1222]
[1741428843038,0.03529487,86243.0,86236.0,0.1222]
[1741428843142,0.03529487,86241.0,86236.0,0.1222]
[1741428843343,0.03529487,86240.0,86236.0,0.1222]
[1741428843601,0.03529487,86243.0,86236.0,0.1222]
[1741428843812,0.03529487,86242.0,86236.0,0.1222]
[1741428844188,0.03529487,86241.0,86236.0,0.1222]
[1741428844504,0.03529487,86240.0,86236.0,0.1222]
[1741428844708,0.103274,86238.0,86236.0,0.1222]
[1741428844937,0.03529487,86237.0,86236.0,0.1222]
[1741428845887,0.33529487,86237.0,86236.0,0.1222]
[1741428847316,0.03529487,86237.0,86236.0,0.1222]
[1741428848091,0.03529487,86237.0,86235.0,0.00049631]
[1741428848476,0.04688987,86237.0,86235.0,0.00049631]
[1741428848673,0.03529487,86236.0,86235.0,0.00049631]
[1741428849176,0.03529487,86236.0,86216.0,0.0758]
[1741428849177,0.2,86226.0,86216.0,0.0758]
[1741428849376,0.14517487,86225.0,86222.0,0.00011635]
[1741428849792,0.03529487,86224.0,86222.0,0.00011635]
[1741428852509,0.02317557,86223.0,86222.0,0.00011635]
[1741428852639,0.05847044,86223.0,86222.0,0.00011635]
[1741428857429,0.02317557,86223.0,86222.0,0.00011635]
[1741428857894,0.05845074,86223.0,86222.0,0.00011635]
[1741428858318,0.02317557,86223.0,86222.0,0.00011635]
[1741428858451,0.05845083,86223.0,86222.0,0.00011635]
[1741428861759,0.05845083,86223.0,86222.0,0.00028635]
[1741428870303,0.10988,86230.0,86222.0,0.00028635]
[1741428870528,0.011597,86227.0,86222.0,0.00028635]
[1741428872285,0.121476,86230.0,86222.0,0.00032635]
[1741428872478,0.505406,86229.0,86222.0,0.00032635]
[1741428872688,0.328817,86228.0,86222.0,0.00032635]
[1741428872844,0.02317265,86223.0,86222.0,0.00032635]
[1741428874369,0.01607139,86223.0,86222.0,0.00032635]
[1741428874554,0.10988,86230.0,86222.0,0.00032635]
[1741428874912,0.10988,86230.0,86223.0,0.0766]
[1741428875342,0.02284444,86228.0,86223.0,0.0766]
[1741428876273,0.10344105,86229.0,86223.0,0.0766]
[1741428878726,0.12700476,86229.0,86223.0,0.0766]
[1741428880411,0.0350329,86228.0,86223.0,0.0766]
[1741428882652,0.0350329,86230.0,86228.0,0.046]
[1741428882839,0.00034,86231.0,86229.0,0.0832]
[1741428889607,0.00034,86231.0,86230.0,0.38587385]
[1741428889811,0.00034,86231.0,86230.0,0.70757385]
[1741428890837,0.10351401,86233.0,86232.0,0.139396]
[1741428891038,0.10351401,86233.0,86232.0,0.38702836]
[1741428891240,0.10351401,86233.0,86232.0,0.38586885]
[1741428891446,0.10351401,86233.0,86232.0,0.70756885]
[1741428892806,0.10351401,86238.0,86237.0,0.243514]
[1741428892959,0.10351401,86238.0,86237.0,0.49569485]
[1741428895376,0.0265944,86277.0,86250.0,0.0495]
[1741428895580,0.10339155,86261.0,86251.0,0.10984]
[1741428895781,0.10339155,86261.0,86252.0,0.0783]
[1741428896543,0.10344541,86261.0,86252.0,0.0783]
[1741428899194,5.386e-05,86261.0,86252.0,0.0783]
[1741428900443,5.386e-05,86261.0,86253.0,0.10984]
[1741428900660,0.01164586,86261.0,86253.0,0.10984]
[1741428900864,0.011593,86258.0,86252.0,0.10984]
[1741428901089,0.011593,86258.0,86242.0,0.0783]
[1741428901289,0.011593,86258.0,86230.0,0.32216113]
[1741428901290,0.011593,86256.0,86232.0,0.0495]
[1741428901521,0.00022376,86261.0,86233.0,0.11099952]
[1741428901679,0.00022376,86261.0,86236.0,0.0783]
[1741428901883,0.00022376,86261.0,86237.0,0.231919]
[1741428902112,0.00022376,86261.0,86238.0,0.00046113]
[1741428902358,0.00022376,86261.0,86238.0,0.00115952]
[1741428903094,0.00022376,86261.0,86239.0,0.0802]
[1741428903296,0.00022376,86261.0,86241.0,0.0499]
[1741428903749,0.00022376,86261.0,86242.0,0.08066113]
[1741428904055,0.00022376,86261.0,86243.0,0.10984]
[1741428904205,0.00022376,86261.0,86244.0,0.00046113]
[1741428904417,0.00022376,86261.0,86243.0,0.10984]
[1741428904626,0.00022376,86261.0,86245.0,0.01454085]
[1741428904829,0.00022376,86261.0,86248.0,0.0802]
[1741428905032,0.00022376,86261.0,86258.0,0.312061]
[1741428905437,0.00022376,86261.0,86260.0,0.30788985]
[1741428905633,0.00022376,86261.0,86260.0,0.70978985]
[1741428905926,0.00022376,86261.0,86260.0,0.47839398]
[1741428906152,0.00022376,86261.0,86260.0,0.46680198]
[1741428906336,0.00022376,86261.0,86260.0,0.46634085]
[1741428907789,0.00022376,86261.0,86260.0,0.47839398]
[1741428908941,0.00022376,86261.0,86260.0,0.46680198]
[1741428909139,0.00022376,86261.0,86260.0,0.46634085]
[1741428909346,0.00022376,86261.0,86260.0,0.57614085]
[1741428909758,0.00022376,86261.0,86260.0,0.5616]
[1741428909958,0.00022376,86261.0,86260.0,0.4315]
[1741428911246,0.00022376,86261.0,86260.0,0.1098]
[1741428912267,0.00022376,86261.0,86260.0,0.21843285]
[1741428912494,0.00022376,86261.0,86260.0,0.1923]
[1741428913173,0.00022376,86261.0,86260.0,0.1098]
[1741428913819,0.00022376,86261.0,86260.0,0.13593285]
[1741428914019,0.00022376,86261.0,86260.0,0.21609195]
[1741428914689,0.00022376,86261.0,86260.0,0.20449995]
[1741428914891,0.00022376,86261.0,86260.0,0.26409195]
[1741428915104,0.00022376,86261.0,86260.0,0.25180198]
[1741428915318,0.00022376,86261.0,86260.0,0.25134085]
[1741428915733,0.00022376,86261.0,86260.0,0.26293285]
[1741428916135,0.00022376,86261.0,86260.0,0.58463285]
[1741428916365,0.00022376,86261.0,86260.0,0.57304085]
[1741428916567,0.00022376,86261.0,86260.0,0.58463285]
[1741428920952,0.00022376,86261.0,86260.0,1.11648985]
[1741428921142,0.00022376,86261.0,86260.0,1.11695098]
[1741428921619,0.00022376,86261.0,86260.0,1.65095098]
[1741428921816,0.00022376,86261.0,86260.0,1.65048985]